bitfinex-derivatives/quotes_ETHF0:USTF0_20250926
["timestamp","ask_amount","ask_price","bid_price","bid_amount"]
[1758912573117,3.2078,4050.7,4050.6,1.17241]
[1758912573317,3.4187,4050.7,4050.6,1.17241]
[1758912573522,3.6432,4050.7,4050.6,1.17241]
[1758912574024,3.64608233,4050.7,4050.6,1.17241]
[1758912576624,3.78638233,4050.7,4050.6,0.75421]
[1758912576824,0.4354,4050.3,4050.2,0.75425]
[1758912577028,0.4354,4050.3,4050.2,0.96605]
[1758912577735,0.5757,4050.3,4050.2,0.75425]
[1758912578624,0.5757,4050.3,4050.2,0.96605]
[1758912578819,0.5757,4050.3,4050.2,0.44405]
[1758912579025,5.5757,4050.3,4050.2,0.44405]
[1758912579233,5.5757,4050.3,4050.2,0.75425]
[1758912579435,0.5757,4050.3,4050.2,0.75425]
[1758912579824,0.4354,4050.3,4050.2,1.17245]
[1758912580832,0.5757,4050.3,4050.2,0.96605]
[1758912582634,0.4354,4050.3,4050.2,0.96605]
[1758912582935,0.4354,4050.3,4050.2,1.17945]
[1758912583933,3.21068233,4050.7,4050.6,1.19131]
[1758912585030,0.42908233,4050.7,4050.6,1.19131]
[1758912585432,0.00288233,4050.7,4050.6,1.19131]
[1758912592138,0.00288233,4050.7,4050.3,1.36509]
[1758912592139,0.5666,4050.4,4050.3,0.3116]
[1758912592337,1.08231796,4050.4,4050.3,0.3116]
[1758912592840,1.08231796,4050.4,4050.3,0.5339]
[1758912593040,1.08231796,4050.4,4050.3,0.3116]
[1758912593341,6.08231796,4050.4,4050.3,0.3116]
[1758912595437,0.94191796,4050.4,4050.3,0.5339]
[1758912596545,0.94191796,4050.4,4050.3,0.7473]
[1758912596936,1.08231796,4050.4,4050.3,0.3116]
[1758912597137,0.58446,4050.1,4050.0,0.00294122]
[1758912597445,1.33631796,4050.1,4050.0,0.44701122]
[1758912598041,1.33631796,4050.1,4050.0,0.75861122]
[1758912598540,1.19591796,4050.1,4050.0,1.11641122]
[1758912598744,1.19591796,4050.1,4050.0,0.88574122]
[1758912598946,1.19591796,4050.1,4050.0,1.32981122]
[1758912600045,1.33631796,4050.1,4050.0,0.89411122]
[1758912600936,1.19591796,4050.1,4050.0,1.11641122]
[1758912601136,1.19591796,4050.1,4050.0,1.32981122]
[1758912602041,1.63997796,4050.1,4050.0,1.32981122]
[1758912602263,1.78037796,4050.1,4050.0,1.11641122]
[1758912603341,1.19591796,4050.1,4050.0,1.11641122]
[1758912604245,1.63997796,4050.1,4050.0,1.11641122]
[1758912604744,1.63997796,4050.1,4050.0,0.45004122]
[1758912604944,1.78037796,4050.1,4050.0,0.00294122]
[1758912606042,6.78037796,4050.1,4050.0,0.00294122]
[1758912606346,6.78037796,4050.1,4049.0,0.57028]
[1758912606347,1.01327,4049.1,4049.0,0.57028]
[1758912606545,1.19881796,4049.1,4049.0,0.78928]
[1758912606750,1.64298796,4049.1,4049.0,0.78928]
[1758912607045,1.19881796,4049.1,4049.0,1.32718]
[1758912607246,1.64298796,4049.1,4049.0,1.32909051]
[1758912607441,1.19881796,4049.1,4049.0,1.32909051]
[1758912607636,0.99371796,4049.1,4049.0,1.32909051]
[1758912608643,1.64298796,4049.1,4049.0,0.66451051]
[1758912608949,0.76971796,4049.1,4049.0,1.32909051]
[1758912609441,0.99371796,4049.1,4049.0,1.32909051]
[1758912610146,0.254,4049.1,4049.0,1.32909051]
[1758912613047,1.12557,4049.1,4049.0,1.32909051]
[1758912613352,0.6814,4049.1,4049.0,1.32909051]
[1758912613749,1.26587,4049.1,4049.0,0.00191051]
[1758912613950,0.2075,4048.3,4048.2,0.5303]
[1758912614158,1.78113375,4048.3,4048.2,0.315]
[1758912614349,0.4274,4048.1,4048.0,0.1355]
[1758912614652,3.7755,4048.1,4048.0,0.6658]
[1758912614853,3.6352,4048.1,4048.0,0.89317169]
[1758912616156,0.6814,4048.1,4048.0,0.89317169]
[1758912616354,3.8892,4048.1,4048.0,0.89317169]
[1758912616552,3.8892,4048.1,4048.0,0.66797169]
[1758912618753,3.8892,4048.1,4048.0,0.89317169]
[1758912619757,3.8892,4048.1,4048.0,1.33746169]
[1758912620750,3.6352,4049.1,4049.0,0.79107]
[1758912620954,3.8892,4049.1,4049.0,1.33127]
[1758912621358,4.15537419,4049.1,4049.0,1.33127]
[1758912621658,3.4618,4049.1,4049.0,1.33127]
[1758912622049,8.8892,4049.1,4049.0,0.4466]
[1758912622252,0.4274,4048.3,4048.2,1.19977]
[1758912622446,0.6814,4048.3,4048.2,1.19977]
[1758912623858,0.254,4048.3,4048.2,1.19977]
[1758912624558,0.4739,4048.3,4048.2,1.19977]
[1758912624955,1.11036,4049.4,4048.2,1.19977]
[1758912624956,3.4277,4049.0,4048.9,1.19969]
[1758912625157,4.43242739,4049.0,4048.9,0.7555]
[1758912625352,4.65232739,4049.0,4048.9,0.7555]
[1758912625558,4.85982739,4049.0,4048.9,0.7555]
[1758912626062,4.41564739,4049.0,4048.9,1.19969]
[1758912626656,4.85982739,4049.0,4048.9,1.19969]
[1758912626964,4.85982739,4049.0,4048.9,0.5303]
[1758912627162,5.00012739,4049.0,4048.9,0.315]
[1758912627364,0.4274,4048.7,4048.6,0.5303]
[1758912627663,0.6814,4048.7,4048.6,0.5303]
[1758912628063,0.6814,4048.7,4048.6,1.19973]
[1758912629167,1.21201716,4048.7,4048.6,1.19973]
[1758912630060,1.00451716,4048.7,4048.6,1.19973]
[1758912630768,1.21201716,4048.7,4048.6,1.19973]
[1758912632160,1.00451716,4048.7,4048.6,1.19973]
[1758912632558,0.78461716,4048.7,4048.6,1.19973]
[1758912633256,3.4618,4049.0,4048.9,0.44419]
[1758912633461,3.99316789,4049.0,4048.9,1.19969]
[1758912633662,4.21306789,4049.0,4048.9,1.19969]
[1758912634060,4.42056789,4049.0,4048.9,1.19969]
[1758912634272,4.86474789,4049.0,4048.9,1.19969]
[1758912634766,4.21306789,4049.0,4048.9,1.19969]
[1758912634965,3.99316789,4049.0,4048.9,1.19969]
[1758912635161,3.99351167,4049.0,4048.9,1.19969]
[1758912636469,4.86509167,4049.0,4048.9,0.7555]
[1758912636667,4.86509167,4049.0,4048.9,0.5303]
[1758912636875,5.00539167,4049.0,4048.9,0.97449]
[1758912637071,4.42091167,4049.0,4048.9,0.97449]
[1758912637576,4.21341167,4049.0,4048.9,1.19969]
[1758912637967,4.86509167,4049.0,4048.9,1.19969]
[1758912638165,5.00539167,4049.0,4048.9,0.315]
[1758912638375,0.87162,4048.7,4048.6,0.97453]
[1758912638675,1.65733167,4048.7,4048.6,0.97453]
[1758912638870,1.21311167,4048.7,4048.6,0.97453]
[1758912639570,0.78571167,4048.7,4048.6,1.19973]
[1758912642076,1.21311167,4048.7,4048.6,1.19973]
[1758912642878,1.35291167,4048.7,4048.6,0.75923]
[1758912643079,1.79713167,4048.7,4048.6,0.77613]
[1758912643572,1.79713167,4048.7,4048.6,0.3319]
[1758912644477,1.01183,4048.6,4048.5,0.90774]
[1758912644780,0.53171167,4048.6,4048.5,1.33144]
[1758912644972,0.254,4048.6,4048.5,1.33144]
[1758912645272,3.2078,4049.0,4048.9,0.44419]
[1758912645571,4.64738184,4049.0,4048.9,1.19979]
[1758912645882,4.86728184,4049.0,4048.9,0.98069]
[1758912646065,4.42310184,4049.0,4048.9,0.98069]
[1758912646578,4.56290184,4049.0,4048.9,0.3319]
[1758912646876,4.56290184,4049.0,4048.9,0.77609]
[1758912647077,4.56290184,4049.0,4048.9,0.98069]
[1758912647377,4.42310184,4049.0,4048.9,0.98069]
[1758912647674,5.00708184,4049.0,4048.9,0.3319]
[1758912647876,4.56290184,4049.0,4048.9,0.77609]
[1758912648181,1.21530184,4049.0,4048.9,1.19979]
[1758912648577,0.4278,4048.7,4048.6,0.98073]
[1758912648771,1.21530184,4048.7,4048.6,0.98073]
[1758912648976,1.21530184,4048.7,4048.6,1.19983]
[1758912649181,0.78750184,4048.7,4048.6,1.19983]
[1758912649375,0.53350184,4048.7,4048.6,1.19983]
[1758912649572,1.75432187,4049.8,4049.5,0.1308]
[1758912649778,1.75432187,4049.8,4049.7,0.7556]
[1758912649779,0.2079,4049.8,4049.7,0.7556]
[1758912649982,1.00199777,4049.8,4049.7,1.19971]
[1758912650277,1.44609777,4049.8,4049.7,0.7556]
[1758912650467,1.66599777,4049.8,4049.7,0.5365]
[1758912650667,1.01172,4049.6,4049.5,0.4627]
[1758912650880,1.55189696,4049.6,4049.5,0.6673]
[1758912651075,1.41209696,4049.6,4049.5,1.11143]
[1758912651476,0.96797696,4049.6,4049.5,1.11143]
[1758912651777,0.96797696,4049.6,4049.5,1.33053]
[1758912651979,1.41209696,4049.6,4049.5,1.33053]
[1758912653283,0.96797696,4049.6,4049.5,1.33053]
[1758912653684,1.41209696,4049.6,4049.5,1.33053]
[1758912654280,1.41209696,4049.6,4049.5,0.8864]
[1758912654684,1.41209696,4049.6,4049.5,1.33053]
[1758912655187,1.41209696,4049.6,4049.5,0.8864]
[1758912655379,1.55189696,4049.6,4049.5,0.3319]
[1758912656585,0.4278,4049.2,4049.1,0.5365]
[1758912656787,4.33376,4049.2,4049.1,0.98067]
[1758912656978,4.87393696,4049.2,4049.1,0.98067]
[1758912657179,4.87393696,4049.2,4049.1,1.19977]
[1758912657380,4.42977696,4049.2,4049.1,1.19977]
[1758912657694,4.20987696,4049.2,4049.1,1.19977]
[1758912659490,4.87393696,4049.2,4049.1,1.19977]
[1758912659991,4.20987696,4049.2,4049.1,1.19977]
[1758912660384,4.00197696,4049.2,4049.1,1.19977]
[1758912660585,4.44613696,4049.2,4049.1,0.7556]
[1758912660895,4.42977696,4049.2,4049.1,1.19977]
[1758912661899,0.4278,4050.1,4050.0,1.33047]
[1758912662101,1.12586,4050.1,4050.0,0.8864]
[1758912662286,0.44411,4049.7,4049.6,0.44412]
[1758912662600,1.12591,4049.7,4049.6,0.2046]
[1758912662798,0.87195,4049.3,4049.2,0.64876]
[1758912662986,4.33375,4049.3,4049.2,0.5365]
[1758912665193,0.6818,4049.3,4049.2,0.98067]
[1758912665595,0.6818,4049.3,4049.2,1.19977]
[1758912666398,4.33376,4049.3,4049.2,0.7556]
[1758912666591,4.33376,4049.3,4049.2,1.19977]
[1758912666798,4.33376,4049.3,4049.2,0.7556]
[1758912667000,4.47366,4049.3,4049.2,0.5365]
[1758912667395,4.47366,4049.3,4049.2,0.98067]
[1758912667689,4.47366,4049.3,4049.2,0.5365]
[1758912668003,4.47366,4049.3,4049.2,0.3319]
[1758912668305,1.02621,4048.8,4048.7,0.78042]
[1758912668502,0.582,4048.2,4048.1,0.3362]
[1758912668699,1.02629,4048.1,4048.0,0.00217169]
[1758912671703,0.4421,4047.3,4047.2,0.3362]
[1758912671904,0.8865,4047.1,4047.0,0.1315]
[1758912672095,0.6961,4047.1,4047.0,0.69]
[1758912672300,0.6961,4047.1,4047.0,0.9063]
[1758912672802,0.69873616,4047.1,4047.0,0.90933741]
[1758912673911,1.24739166,4047.1,4047.0,0.90933741]
[1758912675010,1.38779166,4047.1,4047.0,0.33923741]
[1758912675309,1.24739166,4047.1,4047.0,0.67973741]
[1758912676107,1.38779166,4047.1,4047.0,0.33923741]
[1758912677110,1.38779166,4047.1,4047.0,0.00303741]
[1758912677304,0.83913616,4047.1,4047.0,0.00303741]
[1758912677710,1.38677854,4047.1,4047.0,0.00303741]
[1758912677908,1.38677854,4047.1,4045.5,0.1315]
[1758912677909,0.44451,4046.1,4045.5,0.1315]
[1758912678104,1.27591,4046.1,4046.0,0.4618]
[1758912678308,0.44454,4045.8,4045.7,0.3303]
[1758912678507,1.13554,4045.8,4045.7,0.5446]
[1758912678807,1.13554,4045.8,4045.7,0.54686058]
[1758912679318,4.48374,4045.8,4045.7,0.33256058]
[1758912679603,4.34334,4045.8,4045.7,0.54686058]
[1758912680111,4.48374,4045.8,4045.7,0.33256058]
[1758912680708,3.8988,4045.8,4045.7,0.54686058]
[1758912680914,4.0392,4045.8,4045.7,0.33256058]
[1758912681812,4.0392,4045.8,4045.7,0.00226058]
[1758912682012,0.88161,4045.2,4045.1,0.3303]
[1758912682213,4.34341,4045.2,4045.1,0.5446]
[1758912682906,4.34341,4045.2,4045.1,0.54656975]
[1758912683413,4.48381,4045.2,4045.1,0.33226975]
[1758912684711,4.34341,4045.2,4045.1,0.54656975]
[1758912684911,4.34341,4045.2,4045.1,1.20748975]
[1758912684912,3.8988,4045.2,4045.1,1.20748975]
[1758912685112,4.3434,4045.2,4045.1,0.76286975]
[1758912686103,3.65236,4045.7,4045.6,0.44456]
[1758912686310,0.4755,4045.7,4045.6,1.20546]
[1758912686911,0.92005,4045.7,4045.6,1.20546]
[1758912687213,0.4755,4045.7,4045.6,1.20546]
[1758912687815,0.92005,4045.7,4045.6,1.20546]
[1758912688316,0.92005,4045.7,4045.6,0.7609]
[1758912688712,1.13555,4045.7,4045.6,0.3303]
[1758912688913,0.92005,4045.7,4045.6,1.20546]
[1758912689809,0.4755,4045.7,4045.6,1.20546]
[1758912690106,0.254,4045.7,4045.6,1.20546]
[1758912690707,3.2078,4045.9,4045.8,1.20544]
[1758912690902,3.4618,4045.9,4045.8,1.20544]
[1758912693620,3.6833,4045.9,4045.8,1.20544]
[1758912693814,3.8988,4045.9,4045.8,0.77484]
[1758912694121,3.8988,4045.9,4045.8,1.20544]
[1758912694307,3.4618,4045.9,4045.8,1.20544]
[1758912695106,3.2078,4045.9,4045.8,1.20544]
[1758912695306,3.87377,4046.4,4046.3,1.20538]
[1758912695519,4.67713361,4046.4,4046.3,1.20538]
[1758912695713,4.89263361,4046.4,4046.3,1.20538]
[1758912696722,4.44816361,4046.4,4046.3,1.20538]
[1758912697109,4.19416361,4046.4,4046.3,1.20538]
[1758912697408,4.23266361,4046.4,4046.3,1.20538]
[1758912697721,4.01116361,4046.4,4046.3,1.20538]
[1758912698219,3.97866361,4046.4,4046.3,1.20538]
[1758912698419,5.03303361,4046.4,4046.3,0.77478]
[1758912699019,0.44454,4045.8,4045.7,0.44455]
[1758912699224,0.5774,4045.7,4045.6,0.77486]
[1758912699526,0.98636361,4045.7,4045.6,0.98916]
[1758912699914,1.57131361,4045.7,4045.6,0.3303]
[1758912700117,0.437,4045.2,4045.1,0.87717975]
[1758912700312,0.77086361,4045.2,4045.1,0.87717975]
[1758912700626,0.54936361,4045.2,4045.1,1.20747975]
[1758912701019,0.54936361,4045.2,4045.1,6.20747975]
[1758912701920,0.54936361,4045.2,4045.1,1.20747975]
[1758912702542,0.54936361,4045.2,4045.1,6.20747975]
[1758912702730,0.55202449,4045.6,4045.5,1.01107]
[1758912702921,0.55203196,4045.6,4045.5,1.01107]
[1758912703419,0.55203196,4045.6,4045.5,6.33477]
[1758912703617,0.55203196,4045.6,4045.5,1.33477]
[1758912703931,0.97773196,4045.6,4045.5,1.33477]
[1758912704318,0.55203196,4045.6,4045.5,1.33477]
[1758912704831,0.77273196,4045.6,4045.5,1.33477]
[1758912705528,0.55203196,4045.6,4045.5,6.33477]
[1758912705923,3.4285,4046.4,4046.3,1.20338]
[1758912706130,4.01372676,4046.4,4046.3,1.20338]
[1758912706628,4.23442676,4046.4,4046.3,1.20338]
[1758912707126,4.01372676,4046.4,4046.3,1.20338]
[1758912707428,4.23442676,4046.4,4046.3,1.20338]
[1758912707627,0.55192676,4046.4,4046.3,4.41118]
[1758912710122,0.22333616,4047.1,4047.0,0.57571]
[1758912710324,1.20630699,4047.1,4047.0,0.8902]
[1758912710531,1.34510699,4047.1,4047.0,0.455]
[1758912710725,1.34510699,4047.1,4047.0,0.3237]
[1758912711030,1.34510699,4047.1,4046.9,0.44442]
[1758912711328,4.31727083,4047.0,4046.9,0.44442]
[1758912711722,0.1388,4046.9,4046.6,0.3237]
[1758912711924,0.4257,4046.7,4046.6,0.76815]
[1758912712128,1.36347083,4046.7,4046.6,0.76815]
[1758912712631,1.22467083,4046.7,4046.6,1.20335]
[1758912713326,0.79897083,4046.7,4046.6,1.20335]
[1758912714134,1.01967083,4046.7,4046.6,1.20335]
[1758912715130,0.54497083,4046.7,4046.6,6.20335]
[1758912715331,0.00263616,4047.1,4047.0,1.33461]
[1758912715532,0.00263616,4047.1,4047.0,4.54241]
[1758912715733,40.73945792,4048.8,4048.5,0.44424]
[1758912715734,1.00873,4048.6,4048.5,0.44424]
[1758912715929,1.02793,4048.6,4048.3,0.44425]
[1758912716237,0.4257,4048.4,4048.3,0.76795]
[1758912716534,0.5645,4048.4,4048.3,0.76795]
[1758912716832,0.56627678,4048.4,4048.3,0.76973122]
[1758912717824,0.42747678,4048.4,4048.3,0.98303122]
[1758912718029,0.56627678,4048.4,4048.3,0.76973122]
[1758912718736,0.42747678,4048.4,4048.3,0.98303122]
[1758912718936,0.56627678,4048.4,4048.3,0.76973122]
[1758912720832,0.56627678,4048.4,4048.3,0.00178122]
[1758912721034,0.1388,4046.8,4046.4,0.44447]
[1758912721233,0.0719,4047.0,4046.4,0.76817]
[1758912721234,0.5645,4046.5,4046.4,0.76817]
[1758912721425,0.4257,4046.5,4046.4,0.98147]
[1758912721832,0.4257,4046.5,4046.4,0.76817]
[1758912722136,0.5645,4046.5,4046.4,0.32622094]
[1758912722340,0.4257,4046.5,4046.4,0.53952094]
[1758912723138,0.4257,4046.5,4046.4,0.76142094]
[1758912723434,0.4747,4046.5,4046.4,0.76142094]
[1758912723741,0.254,4046.5,4046.4,0.76142094]
[1758912724145,0.4747,4046.5,4046.4,0.76142094]
[1758912724836,0.6797,4046.5,4046.4,0.76142094]
[1758912725343,0.6797,4046.5,4046.4,0.53952094]
[1758912725838,0.8201,4046.5,4046.4,0.32622094]
[1758912726036,0.8201,4046.5,4046.4,0.00252094]
[1758912726636,0.8201,4046.5,4046.4,0.33652094]
[1758912727745,1.3671567,4046.5,4046.4,0.33652094]
[1758912728646,1.2267567,4046.5,4046.4,0.54252094]
[1758912729349,0.2219,4045.6,4045.5,0.5578]
[1758912729546,1.0229567,4045.6,4045.5,1.00238]
[1758912729746,1.0229567,4045.6,4045.5,0.5578]
[1758912729950,1.0229567,4045.6,4045.5,0.8918]
[1758912730342,1.0229567,4045.6,4045.5,1.33852905]
[1758912730839,0.7176,4044.8,4044.7,0.54]
[1758912731052,4.7261789,4044.8,4044.7,0.334]
[1758912731348,1.16233,4044.2,4044.1,0.334]
[1758912731547,5.1709089,4044.2,4044.1,0.54]
[1758912731753,4.45675371,4044.2,4044.1,0.76330052]
[1758912731937,0.2246619,4044.2,4044.1,0.42930052]
[1758912732144,0.2567619,4044.2,4044.1,0.76330052]
[1758912732551,0.0027619,4044.2,4044.1,0.76330052]
[1758912732744,0.2567619,4044.2,4044.1,0.76330052]
[1758912732945,0.0027619,4044.2,4044.1,5.76330052]
[1758912733747,3.2078,4044.7,4044.6,1.19248]
[1758912734744,0.0026505,4044.7,4044.6,6.19248]
[1758912736853,5e-07,4044.7,4044.6,6.19248]
[1758912737052,5e-07,4044.7,4044.6,1.19248]
[1758912737455,0.4129005,4044.7,4044.6,1.19248]
[1758912737649,0.2074005,4044.7,4044.6,1.19248]
[1758912738148,5e-07,4044.7,4044.6,0.86818]
[1758912738848,0.2074005,4044.7,4044.6,0.86818]
[1758912739047,0.6844005,4044.7,4044.6,0.44468]
[1758912739247,0.6844005,4044.7,4044.1,1.11462052]
[1758912739248,0.2715,4044.6,4044.1,1.11462052]
[1758912739456,0.2074,4044.2,4044.1,0.87103052]
[1758912739657,0.4614,4044.5,4044.4,0.2184]
[1758912739847,0.6669,4044.5,4044.4,0.5427]
[1758912740262,0.6669,4044.5,4044.4,0.7478]
[1758912742162,0.6669,4044.5,4044.3,0.4447]
[1758912742163,0.44472,4044.2,4044.1,0.00280052]
[1758912742361,1.12912,4044.2,4044.1,0.00280052]
[1758912742860,0.6844,4044.2,4044.1,0.00280052]
[1758912743064,0.4129,4044.2,4044.1,0.54550052]
[1758912743665,0.6844,4044.2,4044.1,0.32710052]
[1758912743864,0.6844,4044.2,4044.1,0.00280052]
[1758912744864,0.6844,4044.2,4044.1,0.32710052]
[1758912745066,1.12912,4044.2,4044.1,0.32710052]
[1758912745264,1.11162,4044.2,4044.1,0.99023052]
[1758912745462,1.38312,4044.2,4044.1,0.99023052]
[1758912746758,0.2074,4044.2,4044.1,1.19533052]
[1758912746962,0.4614,4044.2,4044.1,1.19533052]
[1758912748072,0.254,4044.2,4044.1,1.19533052]
[1758912748370,0.6669,4044.2,4044.1,0.75060052]
[1758912748563,0.6669,4044.2,4044.1,1.19533052]
[1758912749160,1.21426044,4044.2,4044.1,1.19533052]
[1758912749360,1.21426044,4044.2,4044.1,0.00280052]
[1758912749361,1.93048044,4044.2,4044.1,0.00280052]
[1758912749966,1.93048044,4044.2,4044.1,0.32710052]
[1758912750366,1.93048044,4044.2,4044.1,0.54550052]
[1758912750564,1.48576044,4044.2,4044.1,0.99023052]
[1758912750870,1.00876044,4044.2,4044.1,1.19533052]
[1758912751064,1.45348044,4044.2,4044.1,0.75060052]
[1758912751266,1.65898044,4044.2,4044.1,1.19533052]
[1758912753273,1.93048044,4044.2,4044.1,0.75060052]
[1758912753472,1.93048044,4044.2,4044.1,0.00280052]
[1758912755072,1.11186,4044.1,4043.4,0.44481]
[1758912755372,4.0655,4043.5,4043.4,1.19261]
[1758912755570,4.00916044,4043.5,4043.4,1.19261]
[1758912756166,4.00916044,4043.5,4043.4,1.19440696]
[1758912757175,4.21656044,4043.5,4043.4,1.19440696]
[1758912757473,4.00916044,4043.5,4043.4,1.19440696]
[1758912757874,3.4618,4043.5,4043.4,1.19440696]
[1758912758268,4.01024304,4043.5,4043.4,1.19440696]
[1758912759266,0.80244304,4043.5,4043.4,1.19440696]
[1758912760167,0.54844304,4043.5,4043.4,1.19440696]
[1758912762067,0.254,4043.6,4043.5,0.4448]
[1758912762284,0.80328536,4043.6,4043.5,1.0102]
[1758912762470,0.80328536,4043.6,4043.5,1.3481]
[1758912762674,1.01058536,4043.6,4043.5,1.3481]
[1758912762879,0.80328536,4043.6,4043.5,1.3481]
[1758912763873,8.85e-06,4043.6,4043.5,6.3481]
[1758912764075,5e-07,4044.7,4044.6,0.44468]
[1758912764272,5e-07,4044.7,4044.6,3.65248]
[1758912764471,5e-07,4044.7,4044.6,0.44468]
[1758912764676,5e-07,4044.7,4044.6,3.65248]
[1758912765772,5e-07,4044.7,4044.6,8.65248]
[1758912767174,5e-07,4044.7,4044.6,8.85132428]
[1758912771787,5e-07,4044.7,4044.6,3.65248]
[1758912772283,5e-07,4044.7,4044.6,3.90648]
[1758912775084,5e-07,4044.7,4044.6,8.90648]
[1758912781694,0.428,4046.8,4046.7,1.00034]
[1758912781984,0.44,4046.8,4046.7,1.12990026]
[1758912782185,0.7114,4046.8,4046.7,1.00034]
[1758912782391,0.7114,4046.8,4046.7,0.44444]
[1758912782690,0.71378902,4046.8,4046.7,0.44629408]
[1758912783790,0.71378902,4046.8,4046.7,0.00185408]
[1758912783984,6.68980063,4046.8,4046.7,0.00185408]
[1758912784189,0.428,4045.7,4045.6,3.9776]
[1758912784488,0.682,4046.1,4046.0,0.79602]
[1758912784692,0.4613,4046.1,4046.0,1.34782]
[1758912784983,0.2073,4046.1,4046.0,1.34782]
[1758912785189,0.4613,4046.2,4046.1,1.21431]
[1758912785492,0.682,4046.2,4046.1,1.21431]
[1758912786489,0.428,4046.2,4046.1,1.21431]
[1758912786693,0.682,4046.2,4046.1,1.21431]
[1758912790181,0.254,4046.2,4046.1,1.21431]
[1758912790594,0.36289764,4046.2,4046.1,1.21431]
[1758912791394,0.80419764,4046.2,4046.1,1.21431]
[1758912791688,0.33349764,4046.2,4046.1,1.21431]
[1758912791890,0.36289764,4046.2,4046.1,1.21431]
[1758912792386,0.89737627,4046.2,4046.1,1.21431]
[1758912792892,1.33357627,4046.2,4046.1,1.21431]
[1758912793093,6.60287627,4046.2,4046.0,0.44696978]
[1758912793296,1.22907863,4046.1,4046.0,0.75656978]
[1758912793588,1.33797627,4046.1,4046.0,0.96536978]
[1758912793795,1.33797627,4046.1,4046.0,0.44696978]
[1758912794190,1.33797627,4046.1,4046.0,0.96536978]
[1758912794394,1.06867627,4046.1,4046.0,1.08876978]
[1758912794694,1.06867627,4046.1,4046.0,1.29616978]
[1758912798496,6.33797627,4046.1,4046.0,0.96536978]
[1758912798699,6.33797627,4046.1,4046.0,0.75656978]
[1758912798994,0.64337627,4046.1,4046.0,1.29616978]
[1758912799202,0.89737627,4046.1,4046.0,1.29616978]
[1758912799698,1.11107627,4046.1,4046.0,1.29616978]
[1758912800097,1.32267627,4046.1,4046.0,1.29616978]
[1758912800297,0.89737627,4046.1,4046.0,1.29616978]
[1758912803400,0.64337627,4046.1,4046.0,1.29616978]
[1758912803602,0.89737627,4046.1,4046.0,1.29616978]
[1758912803806,0.64337627,4046.1,4046.0,1.29616978]
[1758912804100,0.89737627,4046.1,4046.0,1.29616978]
[1758912804498,0.64337627,4046.1,4046.0,1.29616978]
[1758912804699,0.89737627,4046.1,4046.0,1.29616978]
[1758912806794,0.89737627,4046.1,4045.3,2.22297]
[1758912806795,0.86992,4045.1,4044.9,1.76334635]
[1758912807002,0.6946,4044.7,4044.6,0.75427]
[1758912807197,0.5357736,4044.7,4044.6,1.17047]
[1758912807396,0.7897736,4044.7,4044.6,4.37827]
[1758912807596,0.89867124,4044.7,4044.6,1.17047]
[1758912807802,0.89867124,4044.7,4044.6,1.17257697]
[1758912809807,0.64467124,4044.7,4044.6,1.17257697]
[1758912810003,0.89867124,4044.7,4044.6,1.17257697]
[1758912810804,0.64467124,4044.7,4044.6,1.17257697]
[1758912811195,0.10889764,4044.7,4044.6,1.17257697]
[1758912812202,0.2693,4045.8,4045.7,0.96295]
[1758912812203,0.6946,4045.8,4045.7,0.96295]
[1758912812401,1.24209963,4045.8,4045.7,0.96295]
[1758912812802,0.98809963,4045.8,4045.7,1.17035]
[1758912813006,1.24209963,4045.8,4045.7,1.17035]
[1758912813202,0.98809963,4045.8,4045.7,1.17035]
[1758912813403,1.03049963,4045.8,4045.7,1.17035]
[1758912813915,1.24209963,4045.8,4045.7,1.17035]
[1758912815303,0.56279963,4045.8,4045.7,1.17035]
[1758912815508,3.2078,4045.9,4045.8,0.44454]
[1758912815699,3.2078,4045.9,4045.8,1.17034]
[1758912818114,0.254,4046.0,4045.9,0.86073]
[1758912818305,0.254,4046.0,4045.9,1.17033]
[1758912818818,3.2078,4046.4,4046.3,1.17029]
[1758912818819,3.4215,4046.4,4046.3,1.17029]
[1758912819018,0.42768902,4046.8,4046.7,0.96285]
[1758912819207,0.68168902,4046.8,4046.7,0.96285]
[1758912819407,1.51134238,4046.8,4046.7,0.96285]
[1758912819611,1.25734238,4046.8,4046.7,0.96285]
[1758912819806,1.25734238,4046.8,4046.7,1.17025]
[1758912819807,0.81674238,4046.8,4046.7,1.17025]
[1758912820006,0.56274238,4046.8,4046.7,1.17025]
[1758912820211,0.81674238,4046.8,4046.7,1.17025]
[1758912820714,1.03044238,4046.8,4046.7,1.17025]
[1758912821314,1.03006137,4046.8,4046.7,1.17025]
[1758912821906,0.47008902,4046.8,4046.7,1.17025]
[1758912822906,0.00238902,4046.8,4046.7,1.17025]
[1758912828614,0.22428902,4046.8,4046.7,1.17025]
[1758912828812,0.00238902,4046.8,4046.7,1.17025]
[1758912829015,0.22428902,4046.8,4046.7,1.17025]
[1758912829423,0.95668902,4046.8,4046.7,0.44445]
[1758912829923,4.72350945,4046.8,4046.7,0.44445]
[1758912834722,0.2219,4046.1,4046.0,0.1234]
[1758912834922,3.2078,4046.3,4046.2,0.4445]
[1758912835116,3.6837,4046.3,4046.2,1.1776]
[1758912835532,3.4618,4046.3,4046.2,1.1776]
[1758912835821,3.64148902,4046.8,4046.7,1.17754]
[1758912836024,4.45453068,4046.8,4046.7,1.17754]
[1758912836619,4.45453068,4046.8,4046.7,0.96664]
[1758912836824,4.72353068,4046.8,4046.7,0.75034]
[1758912837020,4.46953068,4046.8,4046.7,0.75034]
[1758912837324,4.72353068,4046.8,4046.7,0.75034]
[1758912837627,9.72353068,4046.8,4046.7,0.44444]
[1758912837825,0.2219,4046.5,4045.9,1.11134]
[1758912838022,3.2078,4046.0,4045.9,0.44453]
[1758912838222,4.72114166,4046.0,4045.9,0.44453]
[1758912839331,4.80984166,4046.0,4045.9,0.44453]
[1758912841032,4.72114166,4046.0,4045.9,0.44453]
[1758912842431,4.80984166,4046.0,4045.9,0.44453]
[1758912843027,4.72114166,4046.0,4045.9,0.44453]
[1758912843227,4.72114166,4046.0,4045.9,0.96673]
[1758912845331,4.72114166,4046.0,4045.9,0.75043]
[1758912846031,4.72114166,4046.0,4045.9,0.44453]
[1758912846234,0.2695,4045.8,4045.7,0.44456]